Workbook

Sheet C88
A1: Reporting Template: 2025/26 - Intermediate City
A3: MUNICIPALITY: | B3: LIM476: Fetakgomo Tubatse Local Municipality | C3: Select a municipality
A4: QUARTER: | B4: Quarter 3 | C4: Select a submission quarter
A6: Name: | B6: MJ TSHILWANE | C6: Name of person completing this report (Person Capturing)
A7: Phone Number: | B7: 013231 1000 | C7: Phone number of person completing this report (Person Capturing)
A8: Email: | B8: mjtshilwane@ftlm.gov.za | C8: Email address of person completing this report (Person Capturing)
B10: % Complete: | C10: =COUNTA(C13,C15,C18,C21,C24,C27,C30,C33,C36,C39,C42,C45,C48,C51,C54,C57,C60,C63,C66,C70,C73,C75,C78,C81,C84,C87,C90,C93,C96,C99,C102,C105,C109,C115,C118,C121,C125,C129,C132,C135,C140,C147:C220,C223,C226,C229,C232,C234,C236,C238,C240,C243,C246,C249,C259,C262,C265,C268,C272,C276,C279,C282,C285,C290,C293,C296,C299,C302,C305,C308,C311,C314,C317,C320,C323,C327,C331,C334,C337,C340,C344,C348,C352,C354,C357,C361,C364,C367,C371,C374,C379,C382,C385,C388,C391,C396:C416)/188 -> 1 | D10: =COUNTA(D290,D293,D296,D299,D302,D305,D308,D311,D314,D317,D320,D323,D327,D331,D334,D337,D340,D344,D348,D352,D354,D357,D361,D364,D367,D371,D374,D379,D382,D385,D388,D391)/32 -> 1 | E10: =COUNTA(E13,E15,E18,E21,E24,E27,E30,E33,E36,E39,E42,E45,E48,E51,E54,E57,E60,E63,E66,E70,E73,E75,E78,E81,E84,E87,E90,E93,E96,E99,E102,E105,E109,E115,E118,E121,E125,E129,E132,E135,E140,E223,E226,E229,E232,E234,E236,E238,E240,E243,E246,E249,E259,E262,E265,E268,E272,E276,E279,E282,E285)/61 -> 1 | F10: =COUNTA(F13,F15,F18,F21,F24,F27,F30,F33,F36,F39,F42,F45,F48,F51,F54,F57,F60,F63,F66,F70,F73,F75,F78,F81,F84,F87,F90,F93,F96,F99,F102,F105,F109,F115,F118,F121,F125,F129,F132,F135,F140)/41 -> 1 | G10: =COUNTA(G14,G16:G17,G19:G20,G22:G23,G25:G26,G28:G29,G31:G32,G34:G35,G37:G38,G40:G41,G43:G44,G46:G47,G49:G50,G52:G53,G55:G56,G58:G59,G61:G62,G64:G65,G67:G69,G71:G72,G74,G76:G77,G79:G80,G82:G83,G85:G86,G88:G89,G91:G92,G94:G95,G97:G98,G100:G101,G103:G104,G106:G108,G110:G114,G116:G117,G119:G120,G122:G124,G126:G128,G130:G131,G133:G134,G136:G139,G141:G144,G147:G220)/165 -> 1 | H10: =COUNTA(H13,H15,H18,H21,H24,H27,H30,H33,H36,H39,H42,H45,H48,H51,H54,H57,H60,H63,H66,H70,H73,H75,H78,H81,H84,H87,H90,H93,H96,H99,H102,H105,H109,H115,H118,H121,H125,H129,H132,H135,H140)/41 -> 1 | I10: =COUNTA(I14,I16:I17,I19:I20,I22:I23,I25:I26,I28:I29,I31:I32,I34:I35,I37:I38,I40:I41,I43:I44,I46:I47,I49:I50,I52:I53,I55:I56,I58:I59,I61:I62,I64:I65,I67:I69,I71:I72,I74,I76:I77,I79:I80,I82:I83,I85:I86,I88:I89,I91:I92,I94:I95,I97:I98,I100:I101,I103:I104,I106:I108,I110:I114,I116:I117,I119:I120,I122:I124,I126:I128,I130:I131,I133:I134,I136:I139,I141:I144,I147:I220)/165 -> 1 | J10: =COUNTA(J13,J15,J18,J21,J24,J27,J30,J33,J36,J39,J42,J45,J48,J51,J54,J57,J60,J63,J66,J70,J73,J75,J78,J81,J84,J87,J90,J93,J96,J99,J102,J105,J109,J115,J118,J121,J125,J129,J132,J135,J140)/41 -> 1 | K10: =COUNTA(K14,K16:K17,K19:K20,K22:K23,K25:K26,K28:K29,K31:K32,K34:K35,K37:K38,K40:K41,K43:K44,K46:K47,K49:K50,K52:K53,K55:K56,K58:K59,K61:K62,K64:K65,K67:K69,K71:K72,K74,K76:K77,K79:K80,K82:K83,K85:K86,K88:K89,K91:K92,K94:K95,K97:K98,K100:K101,K103:K104,K106:K108,K110:K114,K116:K117,K119:K120,K122:K124,K126:K128,K130:K131,K133:K134,K136:K139,K141:K144,K147:K220)/165 -> 1 | L10: =COUNTA(L13,L15,L18,L21,L24,L27,L30,L33,L36,L39,L42,L45,L48,L51,L54,L57,L60,L63,L66,L70,L73,L75,L78,L81,L84,L87,L90,L93,L96,L99,L102,L105,L109,L115,L118,L121,L125,L129,L132,L135,L140)/41 -> 0.9756097561 | M10: =COUNTA(M14,M16:M17,M19:M20,M22:M23,M25:M26,M28:M29,M31:M32,M34:M35,M37:M38,M40:M41,M43:M44,M46:M47,M49:M50,M52:M53,M55:M56,M58:M59,M61:M62,M64:M65,M67:M69,M71:M72,M74,M76:M77,M79:M80,M82:M83,M85:M86,M88:M89,M91:M92,M94:M95,M97:M98,M100:M101,M103:M104,M106:M108,M110:M114,M116:M117,M119:M120,M122:M124,M126:M128,M130:M131,M133:M134,M136:M139,M141:M144,M147:M220,M224:M225,M227:M228,M230:M231,M233,M235,M237,M239,M241:M242,M244:M245,M247:M248,M250:M258,M260:M261,M263:M264,M266:M267,M269:M271,M273:M275,M277:M278,M280:M281,M283:M284,M286:M287,M291:M292,M294:M295,M297:M298,M300:M301,M303:M304,M306:M307,M309:M310,M312:M313,M315:M316,M318:M319,M321:M322,M324:M326,M328:M330,M332:M333,M335:M336,M338:M339,M341:M343,M345:M347,M349:M351,M353,M355:M356,M358:M360,M362:M363,M365:M366,M368:M370,M372:M373,M375:M378,M380:M381,M383:M384,M386:M387,M389:M390,M392:M393,M396:M416)/303 -> 0
A11: C88 Code | B11: Description | C11: Baseline (Annual Performance for 2024/25) | D11: Medium term target (term of government | E11: Annual target for 2025/26 | F11: 1st Quarter planned output as per SDBIP | G11: 1st Quarter actual output | H11: 2nd Quarter planned output as per SDBIP | I11: 2nd Quarter actual output | J11: 3rd Quarter planned output as per SDBIP | K11: 3rd Quarter actual output | L11: 4th Quarter planned output as per SDBIP | M11: 4th Quarter actual output | N11: Variation | O11: Reason(s) for variation | P11: Remedial action | Q11: Reasons for no data, if not provided | R11: Steps undertaken, or to be undertaken, to provide data in the future | S11: Estimated date when data will be available
A12: OUTPUT INDICATORS FOR QUARTERLY REPORTING
A13: EE1.11 | B13: Number of dwellings provided with connections to mains electricity supply by the municipality | C13: 0 | E13: 0 | F13: 0 | G13: =IF(ISNUMBER(G14), G14, "") -> 0 | H13: 0 | I13: =IF(ISNUMBER(I14), I14, "") -> 0 | J13: 0 | K13: =IF(ISNUMBER(K14), K14, "") -> 0 | L13: 0 | M13: =IF(ISNUMBER(M14), M14, "") ->  | N13: =IF(AND(B4="Quarter 1",NOT(ISBLANK(F13)),NOT(ISBLANK(F13))),G13-F13,IF(AND(B4="Quarter 2",NOT(ISBLANK(H13)),NOT(ISBLANK(H13))),I13-H13,IF(AND(B4="Quarter 3",NOT(ISBLANK(J13)),NOT(ISBLANK(J13))),K13-J13,IF(AND(B4="Quarter 4",NOT(ISBLANK(L13)),NOT(ISBLANK(L13))),M13-L13,"")))) -> 0
A14: EE1.11(1) | B14: Number of new residential supply points energised by the municipality | G14: 0 | I14: 0 | K14: 0
A15: EE1.13 | B15: Percentage of valid customer applications for new electricity connections processed in terms of municipal service standards | C15: 0 | E15: 0 | F15: 0 | G15: =IF(AND(ISNUMBER(G16),ISNUMBER(G17)), G16/G17, "") ->  | H15: 0 | I15: =IF(AND(ISNUMBER(I16),ISNUMBER(I17)), I16/I17, "") ->  | J15: 0 | K15: =IF(AND(ISNUMBER(K16),ISNUMBER(K17)), K16/K17, "") ->  | L15: 0 | M15: =IF(AND(ISNUMBER(M16),ISNUMBER(M17)), M16/M17, "") ->  | N15: =IF(AND(B4="Quarter 1",NOT(ISBLANK(F15)),NOT(ISBLANK(F15))),G15-F15,IF(AND(B4="Quarter 2",NOT(ISBLANK(H15)),NOT(ISBLANK(H15))),I15-H15,IF(AND(B4="Quarter 3",NOT(ISBLANK(J15)),NOT(ISBLANK(J15))),K15-J15,IF(AND(B4="Quarter 4",NOT(ISBLANK(L15)),NOT(ISBLANK(L15))),M15-L15,"")))) -> 
A16: EE1.13(1) | B16: Number of valid customer applications for a new electricity connection processed within municipal standard timeframes | G16: 0 | I16: 0 | K16: 0
A17: EE1.13(2) | B17: Total number of valid customer applications for a new electricity connection processed | G17: 0 | I17: 0 | K17: 0
A18: EE3.21 | B18: Percentage of planned maintenance performed | C18: 0 | E18: 1 | F18: 1 | G18: =IF(AND(ISNUMBER(G19),ISNUMBER(G20)), G19/G20, "") ->  | H18: 1 | I18: =IF(AND(ISNUMBER(I19),ISNUMBER(I20)), I19/I20, "") ->  | J18: 1 | K18: =IF(AND(ISNUMBER(K19),ISNUMBER(K20)), K19/K20, "") ->  | L18: 1 | M18: =IF(AND(ISNUMBER(M19),ISNUMBER(M20)), M19/M20, "") ->  | N18: =IF(AND(B4="Quarter 1",NOT(ISBLANK(F18)),NOT(ISBLANK(F18))),G18-F18,IF(AND(B4="Quarter 2",NOT(ISBLANK(H18)),NOT(ISBLANK(H18))),I18-H18,IF(AND(B4="Quarter 3",NOT(ISBLANK(J18)),NOT(ISBLANK(J18))),K18-J18,IF(AND(B4="Quarter 4",NOT(ISBLANK(L18)),NOT(ISBLANK(L18))),M18-L18,"")))) -> 
A19: EE3.21(1) | B19: Actual number of maintenance 'jobs' for planned or preventative maintenance | G19: R0 | I19: R15753000 | K19: R863 995.00
A20: EE3.21(2) | B20: Budgeted number of maintenance 'jobs' for planned or preventative maintenance | G20: R72,315,000 | I20: R72,315,000 | K20: R72,315,000
A21: EE3.11 | B21: Percentage of unplanned outages that are restored to supply within industry standard timeframes | C21: 0 | E21: 0 | F21: 0 | G21: =IF(AND(ISNUMBER(G22),ISNUMBER(G23)), G22/G23, "") ->  | H21: 0 | I21: =IF(AND(ISNUMBER(I22),ISNUMBER(I23)), I22/I23, "") ->  | J21: 0 | K21: =IF(AND(ISNUMBER(K22),ISNUMBER(K23)), K22/K23, "") ->  | L21: 0 | M21: =IF(AND(ISNUMBER(M22),ISNUMBER(M23)), M22/M23, "") ->  | N21: =IF(AND(B4="Quarter 1",NOT(ISBLANK(F21)),NOT(ISBLANK(F21))),G21-F21,IF(AND(B4="Quarter 2",NOT(ISBLANK(H21)),NOT(ISBLANK(H21))),I21-H21,IF(AND(B4="Quarter 3",NOT(ISBLANK(J21)),NOT(ISBLANK(J21))),K21-J21,IF(AND(B4="Quarter 4",NOT(ISBLANK(L21)),NOT(ISBLANK(L21))),M21-L21,"")))) -> 
A22: EE3.11(1) | B22: Number of unplanned outages where 98% of affected customers are restored within 24 hours | G22: 0 | I22: 0 | K22: 0
A23: EE3.11(2) | B23: Total number of unplanned outages | G23: 0 | I23: 0 | K23: 0
A24: ENV3.11 | B24: Percentage of recognised informal settlements receiving basic waste removal services | C24: 0.4 | E24: 1 | F24: 1 | G24: =IF(AND(ISNUMBER(G25),ISNUMBER(G26)), G25/G26, "") -> 1 | H24: 1 | I24: =IF(AND(ISNUMBER(I25),ISNUMBER(I26)), I25/I26, "") -> 1 | J24: 1 | K24: =IF(AND(ISNUMBER(K25),ISNUMBER(K26)), K25/K26, "") -> 1 | M24: =IF(AND(ISNUMBER(M25),ISNUMBER(M26)), M25/M26, "") ->  | N24: =IF(AND(B4="Quarter 1",NOT(ISBLANK(F24)),NOT(ISBLANK(F24))),G24-F24,IF(AND(B4="Quarter 2",NOT(ISBLANK(H24)),NOT(ISBLANK(H24))),I24-H24,IF(AND(B4="Quarter 3",NOT(ISBLANK(J24)),NOT(ISBLANK(J24))),K24-J24,IF(AND(B4="Quarter 4",NOT(ISBLANK(L24)),NOT(ISBLANK(L24))),M24-L24,"")))) -> 0
A25: ENV3.11(1) | B25: Number of informal settlements receiving receiving basic waste removal services | G25: 22 | I25: 22 | K25: 22
A26: ENV3.11(2) | B26: The total number of recognised informal settlements | G26: 22 | I26: 22 | K26: 22
A27: HS2.22 | B27: Average number of days taken to process building plan applications of less than 500 square meters | C27: 30 working days | E27: 30 working days | F27: 30 working days | G27: =IF(AND(ISNUMBER(G28),ISNUMBER(G29)), G28/G29, "") ->  | H27: 30 working days | I27: =IF(AND(ISNUMBER(I28),ISNUMBER(I29)), I28/I29, "") ->  | J27: 30 working days | K27: =IF(AND(ISNUMBER(K28),ISNUMBER(K29)), K28/K29, "") ->  | L27: 30 working days | M27: =IF(AND(ISNUMBER(M28),ISNUMBER(M29)), M28/M29, "") ->  | N27: =IF(AND(B4="Quarter 1",NOT(ISBLANK(F27)),NOT(ISBLANK(F27))),G27-F27,IF(AND(B4="Quarter 2",NOT(ISBLANK(H27)),NOT(ISBLANK(H27))),I27-H27,IF(AND(B4="Quarter 3",NOT(ISBLANK(J27)),NOT(ISBLANK(J27))),K27-J27,IF(AND(B4="Quarter 4",NOT(ISBLANK(L27)),NOT(ISBLANK(L27))),M27-L27,"")))) -> 
A28: HS2.22(1) | B28: Sum of the number of days between the date of submission of a complete building plan application to the municipality and the communication of the adjudication result of the application, for all applications less than of 500 square meters | G28: 13 days | I28: 2 days | K28: 30 days
A29: HS2.22(2) | B29: Number of building plan applications less than 500 square meters adjudicated | G29: 4 | I29: 2 | K29: 9
A30: TR4.21 | B30: Percentage of municipal bus services 'on time' | C30: 0 | E30: 0 | F30: 0 | G30: =IF(AND(ISNUMBER(G31),ISNUMBER(G32)), G31/G32, "") ->  | H30: 0 | I30: =IF(AND(ISNUMBER(I31),ISNUMBER(I32)), I31/I32, "") ->  | J30: 0 | K30: =IF(AND(ISNUMBER(K31),ISNUMBER(K32)), K31/K32, "") ->  | L30: 0 | M30: =IF(AND(ISNUMBER(M31),ISNUMBER(M32)), M31/M32, "") ->  | N30: =IF(AND(B4="Quarter 1",NOT(ISBLANK(F30)),NOT(ISBLANK(F30))),G30-F30,IF(AND(B4="Quarter 2",NOT(ISBLANK(H30)),NOT(ISBLANK(H30))),I30-H30,IF(AND(B4="Quarter 3",NOT(ISBLANK(J30)),NOT(ISBLANK(J30))),K30-J30,IF(AND(B4="Quarter 4",NOT(ISBLANK(L30)),NOT(ISBLANK(L30))),M30-L30,"")))) -> 
A31: TR4.21(1) | B31: Scheduled municipal bus departures 'on time' | G31: 0 | I31: 0 | K31: 0
A32: TR4.21(2) | B32: Total scheduled municipal bus departures | G32: 0 | I32: 0 | K32: 0
A33: TR5.31 | B33: Percentage of scheduled municipal bus trips that are universally accessible | C33: 0 | E33: 0 | F33: 0 | G33: =IF(AND(ISNUMBER(G34),ISNUMBER(G35)), G34/G35, "") ->  | H33: 0 | I33: =IF(AND(ISNUMBER(I34),ISNUMBER(I35)), I34/I35, "") ->  | J33: 0 | K33: =IF(AND(ISNUMBER(K34),ISNUMBER(K35)), K34/K35, "") ->  | L33: 0 | M33: =IF(AND(ISNUMBER(M34),ISNUMBER(M35)), M34/M35, "") ->  | N33: =IF(AND(B4="Quarter 1",NOT(ISBLANK(F33)),NOT(ISBLANK(F33))),G33-F33,IF(AND(B4="Quarter 2",NOT(ISBLANK(H33)),NOT(ISBLANK(H33))),I33-H33,IF(AND(B4="Quarter 3",NOT(ISBLANK(J33)),NOT(ISBLANK(J33))),K33-J33,IF(AND(B4="Quarter 4",NOT(ISBLANK(L33)),NOT(ISBLANK(L33))),M33-L33,"")))) -> 
A34: TR5.31(1) | B34: Number of all scheduled municipal bus trips that are universally accessible | G34: 0 | I34: 0 | K34: 0
A35: TR5.31(2) | B35: Total number of scheduled municipal bus trips | G35: 0 | I35: 0 | K35: 0
A36: TR6.12 | B36: Percentage of surfaced municipal road lanes which has been resurfaced and resealed | C36: 0.005 | E36: 0.08 | F36: 0.08 | G36: =IF(AND(ISNUMBER(G37),ISNUMBER(G38)), G37/G38, "") ->  | H36: 0.08 | I36: =IF(AND(ISNUMBER(I37),ISNUMBER(I38)), I37/I38, "") ->  | J36: 0.08 | K36: =IF(AND(ISNUMBER(K37),ISNUMBER(K38)), K37/K38, "") ->  | L36: 0.08 | M36: =IF(AND(ISNUMBER(M37),ISNUMBER(M38)), M37/M38, "") ->  | N36: =IF(AND(B4="Quarter 1",NOT(ISBLANK(F36)),NOT(ISBLANK(F36))),G36-F36,IF(AND(B4="Quarter 2",NOT(ISBLANK(H36)),NOT(ISBLANK(H36))),I36-H36,IF(AND(B4="Quarter 3",NOT(ISBLANK(J36)),NOT(ISBLANK(J36))),K36-J36,IF(AND(B4="Quarter 4",NOT(ISBLANK(L36)),NOT(ISBLANK(L36))),M36-L36,"")))) -> 
A37: TR6.12(1) | B37: Kilometres of municipal road lanes resurfaced and resealed | G37: 0 | I37: 0 | K37: 0
A38: TR6.12(2) | B38: Kilometres of surfaced municipal road lanes | G38: 0 | I38: 0 | K38: 0
A39: TR6.13 | B39: KMs of new municipal road network | C39: 2403 | E39: 2403 | F39: 2403 | G39: =IF(AND(ISNUMBER(G40),ISNUMBER(G41)), G40+G41, "") ->  | H39: 2403 | I39: =IF(AND(ISNUMBER(I40),ISNUMBER(I41)), I40+I41, "") ->  | J39: 2403 | K39: =IF(AND(ISNUMBER(K40),ISNUMBER(K41)), K40+K41, "") -> 0 | L39: 2403 | M39: =IF(AND(ISNUMBER(M40),ISNUMBER(M41)), M40+M41, "") ->  | N39: =IF(AND(B4="Quarter 1",NOT(ISBLANK(F39)),NOT(ISBLANK(F39))),G39-F39,IF(AND(B4="Quarter 2",NOT(ISBLANK(H39)),NOT(ISBLANK(H39))),I39-H39,IF(AND(B4="Quarter 3",NOT(ISBLANK(J39)),NOT(ISBLANK(J39))),K39-J39,IF(AND(B4="Quarter 4",NOT(ISBLANK(L39)),NOT(ISBLANK(L39))),M39-L39,"")))) -> -2403
A40: TR6.13(1) | B40: Number of kilometres of surfaced road network built | G40: 4,5 km | I40: 4,7 km | K40: 0
A41: TR6.13(2) | B41: Number of kilometres of unsurfaced road network built | G41: 0 | I41: 0 | K41: 0
A42: TR6.21 | B42: Percentage of reported pothole complaints resolved within standard municipal response time | C42: 457m2% | E42: 1 | F42: 1 | G42: =IF(AND(ISNUMBER(G43),ISNUMBER(G44)), G43/G44, "") ->  | H42: 1 | I42: =IF(AND(ISNUMBER(I43),ISNUMBER(I44)), I43/I44, "") ->  | J42: 1 | K42: =IF(AND(ISNUMBER(K43),ISNUMBER(K44)), K43/K44, "") ->  | L42: 1 | M42: =IF(AND(ISNUMBER(M43),ISNUMBER(M44)), M43/M44, "") ->  | N42: =IF(AND(B4="Quarter 1",NOT(ISBLANK(F42)),NOT(ISBLANK(F42))),G42-F42,IF(AND(B4="Quarter 2",NOT(ISBLANK(H42)),NOT(ISBLANK(H42))),I42-H42,IF(AND(B4="Quarter 3",NOT(ISBLANK(J42)),NOT(ISBLANK(J42))),K42-J42,IF(AND(B4="Quarter 4",NOT(ISBLANK(L42)),NOT(ISBLANK(L42))),M42-L42,"")))) -> 
A43: TR6.21(1) | B43: Number of pothole complaints resolved within the standard time after being reported | G43: 0 | I43: 0 | K43: 0
A44: TR6.21(2) | B44: Number of potholes reported | G44: 0 | I44: 0 | K44: 0
A45: WS1.11 | B45: Number of new sewer connections meeting minimum standards | C45: 0 | E45: 0 | F45: 0 | G45: =IF(AND(ISNUMBER(G46),ISNUMBER(G47)), G46+G47, "") -> 0 | H45: 0 | I45: =IF(AND(ISNUMBER(I46),ISNUMBER(I47)), I46+I47, "") -> 0 | J45: 0 | K45: =IF(AND(ISNUMBER(K46),ISNUMBER(K47)), K46+K47, "") -> 0 | L45: 0 | M45: =IF(AND(ISNUMBER(M46),ISNUMBER(M47)), M46+M47, "") ->  | N45: =IF(AND(B4="Quarter 1",NOT(ISBLANK(F45)),NOT(ISBLANK(F45))),G45-F45,IF(AND(B4="Quarter 2",NOT(ISBLANK(H45)),NOT(ISBLANK(H45))),I45-H45,IF(AND(B4="Quarter 3",NOT(ISBLANK(J45)),NOT(ISBLANK(J45))),K45-J45,IF(AND(B4="Quarter 4",NOT(ISBLANK(L45)),NOT(ISBLANK(L45))),M45-L45,"")))) -> 0
A46: WS1.11(1) | B46: Number of new sewer connections to consumer units | G46: 0 | I46: 0 | K46: 0
A47: WS1.11(2) | B47: Number of new sewer connections to communal toilet facilities. | G47: 0 | I47: 0 | K47: 0
A48: WS2.11 | B48: Number of new water connections meeting minimum standards | C48: 0 | E48: 0 | F48: 0 | G48: =IF(AND(ISNUMBER(G49),ISNUMBER(G50)), G49+G50, "") -> 0 | H48: 0 | I48: =IF(AND(ISNUMBER(I49),ISNUMBER(I50)), I49+I50, "") -> 0 | J48: 0 | K48: =IF(AND(ISNUMBER(K49),ISNUMBER(K50)), K49+K50, "") -> 0 | L48: 0 | M48: =IF(AND(ISNUMBER(M49),ISNUMBER(M50)), M49+M50, "") ->  | N48: =IF(AND(B4="Quarter 1",NOT(ISBLANK(F48)),NOT(ISBLANK(F48))),G48-F48,IF(AND(B4="Quarter 2",NOT(ISBLANK(H48)),NOT(ISBLANK(H48))),I48-H48,IF(AND(B4="Quarter 3",NOT(ISBLANK(J48)),NOT(ISBLANK(J48))),K48-J48,IF(AND(B4="Quarter 4",NOT(ISBLANK(L48)),NOT(ISBLANK(L48))),M48-L48,"")))) -> 0
A49: WS2.11(1) | B49: Number of new water connections to piped (tap) water | G49: 0 | I49: 0 | K49: 0
A50: WS2.11(2) | B50: Number of new water connections to public/communal facilities. | G50: 0 | I50: 0 | K50: 0
A51: WS3.11 | B51: Percentage of callouts responded to within 48 hours (sanitation/wastewater) | C51: 0 | E51: 0 | F51: 0 | G51: =IF(AND(ISNUMBER(G52),ISNUMBER(G53)), G52/G53, "") ->  | H51: 0 | I51: =IF(AND(ISNUMBER(I52),ISNUMBER(I53)), I52/I53, "") ->  | J51: 0 | K51: =IF(AND(ISNUMBER(K52),ISNUMBER(K53)), K52/K53, "") ->  | L51: 0 | M51: =IF(AND(ISNUMBER(M52),ISNUMBER(M53)), M52/M53, "") ->  | N51: =IF(AND(B4="Quarter 1",NOT(ISBLANK(F51)),NOT(ISBLANK(F51))),G51-F51,IF(AND(B4="Quarter 2",NOT(ISBLANK(H51)),NOT(ISBLANK(H51))),I51-H51,IF(AND(B4="Quarter 3",NOT(ISBLANK(J51)),NOT(ISBLANK(J51))),K51-J51,IF(AND(B4="Quarter 4",NOT(ISBLANK(L51)),NOT(ISBLANK(L51))),M51-L51,"")))) -> 
A52: WS3.11(1) | B52: Number of callouts responded to within 48 hours (sanitation/wastewater) | G52: 0 | I52: 0 | K52: 0
A53: WS3.11(2) | B53: Total number of callouts (sanitation/wastewater) | G53: 0 | I53: 0 | K53: 0
A54: WS3.21 | B54: Percentage of callouts responded to within 48 hours (water) | C54: 0 | E54: 0 | F54: 0 | G54: =IF(AND(ISNUMBER(G55),ISNUMBER(G56)), G55/G56, "") ->  | H54: 0 | I54: =IF(AND(ISNUMBER(I55),ISNUMBER(I56)), I55/I56, "") ->  | J54: 0 | K54: =IF(AND(ISNUMBER(K55),ISNUMBER(K56)), K55/K56, "") ->  | L54: 0 | M54: =IF(AND(ISNUMBER(M55),ISNUMBER(M56)), M55/M56, "") ->  | N54: =IF(AND(B4="Quarter 1",NOT(ISBLANK(F54)),NOT(ISBLANK(F54))),G54-F54,IF(AND(B4="Quarter 2",NOT(ISBLANK(H54)),NOT(ISBLANK(H54))),I54-H54,IF(AND(B4="Quarter 3",NOT(ISBLANK(J54)),NOT(ISBLANK(J54))),K54-J54,IF(AND(B4="Quarter 4",NOT(ISBLANK(L54)),NOT(ISBLANK(L54))),M54-L54,"")))) -> 
A55: WS3.21(1) | B55: Number of callouts responded to within 48 hours (water) | G55: 0 | I55: 0 | K55: 0
A56: WS3.21(2) | B56: Total water service callouts received | G56: 0 | I56: 0 | K56: 0
A57: GG1.21 | B57: Staff vacancy rate | C57: 0.5 | E57: 0.4 | F57: 0.4 | G57: =IF(AND(ISNUMBER(G58),ISNUMBER(G59)), (G58-G59)/G58, "") -> 0.7112860892 | H57: 0.4 | I57: =IF(AND(ISNUMBER(I58),ISNUMBER(I59)), (I58-I59)/I58, "") -> 0.7182852143 | J57: 0.4 | K57: =IF(AND(ISNUMBER(K58),ISNUMBER(K59)), (K58-K59)/K58, "") -> 0.7238999137 | L57: 0.4 | M57: =IF(AND(ISNUMBER(M58),ISNUMBER(M59)), (M58-M59)/M58, "") ->  | N57: =IF(AND(B4="Quarter 1",NOT(ISBLANK(F57)),NOT(ISBLANK(F57))),G57-F57,IF(AND(B4="Quarter 2",NOT(ISBLANK(H57)),NOT(ISBLANK(H57))),I57-H57,IF(AND(B4="Quarter 3",NOT(ISBLANK(J57)),NOT(ISBLANK(J57))),K57-J57,IF(AND(B4="Quarter 4",NOT(ISBLANK(L57)),NOT(ISBLANK(L57))),M57-L57,"")))) -> 0.3238999137
A58: GG1.21(1) | B58: The number of employee posts on the approved organisational structure | G58: 1143 | I58: 1143 | K58: 1159
A59: GG1.21(2) | B59: The number of actual employees in the municipality | G59: 330 | I59: 322 | K59: 320
A60: GG1.22 | B60: Percentage of vacant posts filled within 6 months | C60: 0.1 | E60: 0.1 | F60: 0.1 | G60: =IF(AND(ISNUMBER(G61),ISNUMBER(G62)), G61/G62, "") -> 1.461538462 | H60: 0.1 | I60: =IF(AND(ISNUMBER(I61),ISNUMBER(I62)), I61/I62, "") ->  | J60: 0.1 | K60: =IF(AND(ISNUMBER(K61),ISNUMBER(K62)), K61/K62, "") ->  | L60: 0.1 | M60: =IF(AND(ISNUMBER(M61),ISNUMBER(M62)), M61/M62, "") ->  | N60: =IF(AND(B4="Quarter 1",NOT(ISBLANK(F60)),NOT(ISBLANK(F60))),G60-F60,IF(AND(B4="Quarter 2",NOT(ISBLANK(H60)),NOT(ISBLANK(H60))),I60-H60,IF(AND(B4="Quarter 3",NOT(ISBLANK(J60)),NOT(ISBLANK(J60))),K60-J60,IF(AND(B4="Quarter 4",NOT(ISBLANK(L60)),NOT(ISBLANK(L60))),M60-L60,"")))) -> 
A61: GG1.22(1) | B61: Number of vacant posts filled within 6 months since the date (dd/mm/yyyy) of authority to proceed with filling the vacancy | G61: 19 | I61: 0 | K61: 0
A62: GG1.22(2) | B62: Number of vacant posts that have been filled | G62: 13 | I62: 0 | K62: 0
A63: GG2.11 | B63: Percentage of ward committees with 6 or more ward committee members (excluding the ward councillor) | C63: 1 | E63: 1 | F63: 1 | G63: =IF(AND(ISNUMBER(G64),ISNUMBER(G65)), G64/G65, "") -> 1 | H63: 1 | I63: =IF(AND(ISNUMBER(I64),ISNUMBER(I65)), I64/I65, "") -> 1 | J63: 1 | K63: =IF(AND(ISNUMBER(K64),ISNUMBER(K65)), K64/K65, "") -> 1 | L63: 1 | M63: =IF(AND(ISNUMBER(M64),ISNUMBER(M65)), M64/M65, "") ->  | N63: =IF(AND(B4="Quarter 1",NOT(ISBLANK(F63)),NOT(ISBLANK(F63))),G63-F63,IF(AND(B4="Quarter 2",NOT(ISBLANK(H63)),NOT(ISBLANK(H63))),I63-H63,IF(AND(B4="Quarter 3",NOT(ISBLANK(J63)),NOT(ISBLANK(J63))),K63-J63,IF(AND(B4="Quarter 4",NOT(ISBLANK(L63)),NOT(ISBLANK(L63))),M63-L63,"")))) -> 0
A64: GG2.11(1) | B64: Total number of ward committees with 6 or more members | G64: 39 | I64: 39 | K64: 39
A65: GG2.11(2) | B65: Total number of wards | G65: 39 | I65: 39 | K65: 39
A66: GG2.12 | B66: Percentage of wards that have held a quarterly councillor-convened community meeting | C66: 1 | E66: 1 | F66: 1 | G66: =IF(AND(ISNUMBER(G67),ISNUMBER(G68),ISNUMBER(G69)), G67/(G68*G69), "") -> 0.07692307692 | H66: 1 | I66: =IF(AND(ISNUMBER(I67),ISNUMBER(I68),ISNUMBER(I69)), I67/(I68*I69), "") -> 0.07692307692 | J66: 1 | K66: =IF(AND(ISNUMBER(K67),ISNUMBER(K68),ISNUMBER(K69)), K67/(K68*K69), "") -> 0.07692307692 | L66: 1 | M66: =IF(AND(ISNUMBER(M67),ISNUMBER(M68),ISNUMBER(M69)), M67/(M68*M69), "") ->  | N66: =IF(AND(B4="Quarter 1",NOT(ISBLANK(F66)),NOT(ISBLANK(F66))),G66-F66,IF(AND(B4="Quarter 2",NOT(ISBLANK(H66)),NOT(ISBLANK(H66))),I66-H66,IF(AND(B4="Quarter 3",NOT(ISBLANK(J66)),NOT(ISBLANK(J66))),K66-J66,IF(AND(B4="Quarter 4",NOT(ISBLANK(L66)),NOT(ISBLANK(L66))),M66-L66,"")))) -> -0.9230769231
A67: GG2.12(1) | B67: Number of councillor convened ward community meetings | G67: 117 | I67: 117 | K67: 117
A68: GG2.12(2) | B68: Total number of wards in the municipality | G68: 39 | I68: 39 | K68: 39
A69: GG2.12(3) | B69: Reporting quarter | G69: 39 | I69: 39 | K69: 39
A70: GG2.31 | B70: Percentage of official complaints responded to through the municipal complaint management system | C70: 1 | E70: 1 | F70: 1 | G70: =IF(AND(ISNUMBER(G71),ISNUMBER(G72)), G71/G72, "") ->  | H70: 1 | I70: =IF(AND(ISNUMBER(I71),ISNUMBER(I72)), I71/I72, "") -> 1 | J70: 1 | K70: =IF(AND(ISNUMBER(K71),ISNUMBER(K72)), K71/K72, "") ->  | L70: 100 | M70: =IF(AND(ISNUMBER(M71),ISNUMBER(M72)), M71/M72, "") ->  | N70: =IF(AND(B4="Quarter 1",NOT(ISBLANK(F70)),NOT(ISBLANK(F70))),G70-F70,IF(AND(B4="Quarter 2",NOT(ISBLANK(H70)),NOT(ISBLANK(H70))),I70-H70,IF(AND(B4="Quarter 3",NOT(ISBLANK(J70)),NOT(ISBLANK(J70))),K70-J70,IF(AND(B4="Quarter 4",NOT(ISBLANK(L70)),NOT(ISBLANK(L70))),M70-L70,"")))) -> 
A71: GG2.31(1) | B71: Number of official complaints responded to according to municipal norms and standards | G71: 0 | I71: 1 | K71: 0
A72: GG2.31(2) | B72: Number of official complaints received | G72: 0 | I72: 1 | K72: 0
A73: GG5.11 | B73: Number of active suspensions longer than three months | C73: 0 | E73: 0 | F73: 0 | G73: =IF(ISNUMBER(G74), G74, "") -> 0 | H73: 0 | I73: =IF(ISNUMBER(I74), I74, "") -> 0 | J73: 0 | K73: =IF(ISNUMBER(K74), K74, "") -> 0 | L73: 0 | M73: =IF(ISNUMBER(M74), M74, "") ->  | N73: =IF(AND(B4="Quarter 1",NOT(ISBLANK(F73)),NOT(ISBLANK(F73))),G73-F73,IF(AND(B4="Quarter 2",NOT(ISBLANK(H73)),NOT(ISBLANK(H73))),I73-H73,IF(AND(B4="Quarter 3",NOT(ISBLANK(J73)),NOT(ISBLANK(J73))),K73-J73,IF(AND(B4="Quarter 4",NOT(ISBLANK(L73)),NOT(ISBLANK(L73))),M73-L73,"")))) -> 0
A74: GG5.11(1) | B74: Simple count of the number of active suspensions in the municipality lasting more than three months | G74: 0 | I74: 0 | K74: 0
A75: LED1.21 | B75: Number of work opportunities created through Public Employment Programmes (incl. EPWP, CWP and other related employment programmes) | C75: 3090 | E75: 3090 | F75: 3090 | G75: =IF(AND(ISNUMBER(G76),ISNUMBER(G77)), G76+G77, "") -> 2508 | H75: 3090 | I75: =IF(AND(ISNUMBER(I76),ISNUMBER(I77)), I76+I77, "") -> 2508 | J75: 3090 | K75: =IF(AND(ISNUMBER(K76),ISNUMBER(K77)), K76+K77, "") -> 2998 | L75: 3090 | M75: =IF(AND(ISNUMBER(M76),ISNUMBER(M77)), M76+M77, "") ->  | N75: =IF(AND(B4="Quarter 1",NOT(ISBLANK(F75)),NOT(ISBLANK(F75))),G75-F75,IF(AND(B4="Quarter 2",NOT(ISBLANK(H75)),NOT(ISBLANK(H75))),I75-H75,IF(AND(B4="Quarter 3",NOT(ISBLANK(J75)),NOT(ISBLANK(J75))),K75-J75,IF(AND(B4="Quarter 4",NOT(ISBLANK(L75)),NOT(ISBLANK(L75))),M75-L75,"")))) -> -92
A76: LED1.21(1) | B76: Number of work opportunities provided by the municipality through the Expanded Public Works Programme | G76: 428 | I76: 428 | K76: 428
A77: LED1.21(2) | B77: Number of work opportunities provided through the Community Works Programme and other related infrastructure initiatives. | G77: 2080 | I77: 2080 | K77: 2570
A78: LED2.12 | B78: Percentage of the municipality's operating budget spent on indigent relief for free basic services | C78: 0.1 | E78: 0.1 | F78: 0.1 | G78: =IF(AND(ISNUMBER(G79),ISNUMBER(G80)), G79/G80, "") -> 0.2564784691 | H78: 0.1 | I78: =IF(AND(ISNUMBER(I79),ISNUMBER(I80)), I79/I80, "") -> 0.5183406992 | J78: 0.1 | K78: =IF(AND(ISNUMBER(K79),ISNUMBER(K80)), K79/K80, "") ->  | L78: 10 | M78: =IF(AND(ISNUMBER(M79),ISNUMBER(M80)), M79/M80, "") ->  | N78: =IF(AND(B4="Quarter 1",NOT(ISBLANK(F78)),NOT(ISBLANK(F78))),G78-F78,IF(AND(B4="Quarter 2",NOT(ISBLANK(H78)),NOT(ISBLANK(H78))),I78-H78,IF(AND(B4="Quarter 3",NOT(ISBLANK(J78)),NOT(ISBLANK(J78))),K78-J78,IF(AND(B4="Quarter 4",NOT(ISBLANK(L78)),NOT(ISBLANK(L78))),M78-L78,"")))) -> 
A79: LED2.12(1) | B79: R-value of operating budget expenditure on free basic services | G79: 1950370 | I79: 3941680.38 | K79: R7,038,243
A80: LED2.12(2) | B80: Total operating budget for the municipality | G80: 7604420 | I80: 7604420 | K80: R7,604,420
A81: FD1.11 | B81: Percentage compliance with the required attendance time for structural firefighting incidents | C81: 0 | E81: 0 | F81: 0 | G81: =IF(AND(ISNUMBER(G82),ISNUMBER(G83)), G82/G83, "") ->  | H81: 0 | I81: =IF(AND(ISNUMBER(I82),ISNUMBER(I83)), I82/I83, "") ->  | J81: 0 | K81: =IF(AND(ISNUMBER(K82),ISNUMBER(K83)), K82/K83, "") ->  | L81: 0 | M81: =IF(AND(ISNUMBER(M82),ISNUMBER(M83)), M82/M83, "") ->  | N81: =IF(AND(B4="Quarter 1",NOT(ISBLANK(F81)),NOT(ISBLANK(F81))),G81-F81,IF(AND(B4="Quarter 2",NOT(ISBLANK(H81)),NOT(ISBLANK(H81))),I81-H81,IF(AND(B4="Quarter 3",NOT(ISBLANK(J81)),NOT(ISBLANK(J81))),K81-J81,IF(AND(B4="Quarter 4",NOT(ISBLANK(L81)),NOT(ISBLANK(L81))),M81-L81,"")))) -> 
A82: FD1.11(1) | B82: Number of structural fire incidents where the attendance time was 14 minutes or less | G82: 0 | I82: 0 | K82: 0
A83: FD1.11(2) | B83: Total number of distress calls for structural fire incidents received | G83: 0 | I83: 0 | K83: 0
A84: LED1.11 | B84: Percentage of total municipal operating expenditure spent on contracted service providers physically residing within the municipal area | C84: 1 | E84: 1 | F84: 1 | G84: =IF(AND(ISNUMBER(G85),ISNUMBER(G86)), G85/G86, "") -> 5.865826772 | H84: 1 | I84: =IF(AND(ISNUMBER(I85),ISNUMBER(I86)), I85/I86, "") -> 2.919078682 | J84: 1 | K84: =IF(AND(ISNUMBER(K85),ISNUMBER(K86)), K85/K86, "") ->  | L84: 1 | M84: =IF(AND(ISNUMBER(M85),ISNUMBER(M86)), M85/M86, "") ->  | N84: =IF(AND(B4="Quarter 1",NOT(ISBLANK(F84)),NOT(ISBLANK(F84))),G84-F84,IF(AND(B4="Quarter 2",NOT(ISBLANK(H84)),NOT(ISBLANK(H84))),I84-H84,IF(AND(B4="Quarter 3",NOT(ISBLANK(J84)),NOT(ISBLANK(J84))),K84-J84,IF(AND(B4="Quarter 4",NOT(ISBLANK(L84)),NOT(ISBLANK(L84))),M84-L84,"")))) -> 
A85: LED1.11(1) | B85: R-value of operating expenditure on contracted services within the municipal area | G85: 391104000 | I85: 391104000 | K85: R429,278,000
A86: LED1.11(2) | B86: Total municipal operating expenditure on contracted services | G86: 66675000 | I86: 133982000 | K86: R246,145,000
A87: LED3.11 | B87: Average time taken to finalise business license applications | C87: 30 days | E87: 30 days | F87: 30 days | G87: =IF(AND(ISNUMBER(G88),ISNUMBER(G89)), G88/G89, "") ->  | H87: 30 days | I87: =IF(AND(ISNUMBER(I88),ISNUMBER(I89)), I88/I89, "") ->  | J87: 30 days | K87: =IF(AND(ISNUMBER(K88),ISNUMBER(K89)), K88/K89, "") ->  | L87: 30 days | M87: =IF(AND(ISNUMBER(M88),ISNUMBER(M89)), M88/M89, "") ->  | N87: =IF(AND(B4="Quarter 1",NOT(ISBLANK(F87)),NOT(ISBLANK(F87))),G87-F87,IF(AND(B4="Quarter 2",NOT(ISBLANK(H87)),NOT(ISBLANK(H87))),I87-H87,IF(AND(B4="Quarter 3",NOT(ISBLANK(J87)),NOT(ISBLANK(J87))),K87-J87,IF(AND(B4="Quarter 4",NOT(ISBLANK(L87)),NOT(ISBLANK(L87))),M87-L87,"")))) -> 
A88: LED3.11(1) | B88: Sum of the total working days per business application finalised | G88: 0 | I88: 0 | K88: 0
A89: LED3.11(2) | B89: Number of business applications finalised | G89: 0 | I89: 0 | K89: 0
A90: LED3.31 | B90: Average number of days from the point of advertising to the letter of award per 80/20 procurement process | C90: 90 days | E90: 90 days | F90: 90 days | G90: =IF(AND(ISNUMBER(G91),ISNUMBER(G92)), G91/G92, "") ->  | H90: 90 days | I90: =IF(AND(ISNUMBER(I91),ISNUMBER(I92)), I91/I92, "") ->  | J90: 90 days | K90: =IF(AND(ISNUMBER(K91),ISNUMBER(K92)), K91/K92, "") ->  | L90: 90 days | M90: =IF(AND(ISNUMBER(M91),ISNUMBER(M92)), M91/M92, "") ->  | N90: =IF(AND(B4="Quarter 1",NOT(ISBLANK(F90)),NOT(ISBLANK(F90))),G90-F90,IF(AND(B4="Quarter 2",NOT(ISBLANK(H90)),NOT(ISBLANK(H90))),I90-H90,IF(AND(B4="Quarter 3",NOT(ISBLANK(J90)),NOT(ISBLANK(J90))),K90-J90,IF(AND(B4="Quarter 4",NOT(ISBLANK(L90)),NOT(ISBLANK(L90))),M90-L90,"")))) -> 
A91: LED3.31(1) | B91: Sum of the number of days from the point of advertising a tender in terms of the 80/20 procurement process to the issuing of the letter of award | G91: 90 days | I91: 77 Days | K91: 0
A92: LED3.31(2) | B92: Total number of 80/20 tenders awarded as per the procurement process | G92: 3 | I92: 3 | K92: 0
A93: LED3.32 | B93: Percentage of municipal payments made to service providers who submitted complete forms within 30-days of invoice submission | C93: 0.89 | E93: 1 | F93: 1 | G93: =IF(AND(ISNUMBER(G94),ISNUMBER(G95)), G94/G95, "") -> 0.8975069252 | H93: 1 | I93: =IF(AND(ISNUMBER(I94),ISNUMBER(I95)), I94/I95, "") -> 6.756097561 | J93: 1 | K93: =IF(AND(ISNUMBER(K94),ISNUMBER(K95)), K94/K95, "") -> 4.6 | L93: 1 | M93: =IF(AND(ISNUMBER(M94),ISNUMBER(M95)), M94/M95, "") ->  | N93: =IF(AND(B4="Quarter 1",NOT(ISBLANK(F93)),NOT(ISBLANK(F93))),G93-F93,IF(AND(B4="Quarter 2",NOT(ISBLANK(H93)),NOT(ISBLANK(H93))),I93-H93,IF(AND(B4="Quarter 3",NOT(ISBLANK(J93)),NOT(ISBLANK(J93))),K93-J93,IF(AND(B4="Quarter 4",NOT(ISBLANK(L93)),NOT(ISBLANK(L93))),M93-L93,"")))) -> 3.6
A94: LED3.32(1) | B94: Number of municipal payments within 30-days of complete invoice receipt made to service providers | G94: 324 | I94: 277 | K94: 299
A95: LED3.32(2) | B95: Total number of complete invoices received (30 days or older) | G95: 361 | I95: 41 | K95: 65
A96: FM1.11 | B96: Total Capital Expenditure as a percentage of Total Capital Budget | C96: 1 | E96: 1 | F96: 1 | G96: =IF(AND(ISNUMBER(G97),ISNUMBER(G98)), G97/G98, "") -> 0.1845505061 | H96: 1 | I96: =IF(AND(ISNUMBER(I97),ISNUMBER(I98)), I97/I98, "") -> 0.4347549243 | J96: 1 | K96: =IF(AND(ISNUMBER(K97),ISNUMBER(K98)), K97/K98, "") ->  | L96: 1 | M96: =IF(AND(ISNUMBER(M97),ISNUMBER(M98)), M97/M98, "") ->  | N96: =IF(AND(B4="Quarter 1",NOT(ISBLANK(F96)),NOT(ISBLANK(F96))),G96-F96,IF(AND(B4="Quarter 2",NOT(ISBLANK(H96)),NOT(ISBLANK(H96))),I96-H96,IF(AND(B4="Quarter 3",NOT(ISBLANK(J96)),NOT(ISBLANK(J96))),K96-J96,IF(AND(B4="Quarter 4",NOT(ISBLANK(L96)),NOT(ISBLANK(L96))),M96-L96,"")))) -> 
A97: FM1.11(1) | B97: Actual Capital Expenditure | G97: 53040000 | I97: 124949000 | K97: R176,613,000
A98: FM1.11(2) | B98: Budgeted Capital Expenditure | G98: 287401000 | I98: 287401000 | K98: R201,989,000
A99: FM1.12 | B99: Total Operating Expenditure as a percentage of Total Operating Expenditure Budget | C99: 1 | E99: 1 | F99: 1 | G99: =IF(AND(ISNUMBER(G100),ISNUMBER(G101)), G100/G101, "") -> 0.2057235205 | H99: 1 | I99: =IF(AND(ISNUMBER(I100),ISNUMBER(I101)), I100/I101, "") -> 0.3895502619 | J99: 1 | K99: =IF(AND(ISNUMBER(K100),ISNUMBER(K101)), K100/K101, "") ->  | L99: 100 | M99: =IF(AND(ISNUMBER(M100),ISNUMBER(M101)), M100/M101, "") ->  | N99: =IF(AND(B4="Quarter 1",NOT(ISBLANK(F99)),NOT(ISBLANK(F99))),G99-F99,IF(AND(B4="Quarter 2",NOT(ISBLANK(H99)),NOT(ISBLANK(H99))),I99-H99,IF(AND(B4="Quarter 3",NOT(ISBLANK(J99)),NOT(ISBLANK(J99))),K99-J99,IF(AND(B4="Quarter 4",NOT(ISBLANK(L99)),NOT(ISBLANK(L99))),M99-L99,"")))) -> 
A100: FM1.12(1) | B100: Actual Operating Expenditure | G100: 205331000 | I100: 388807000 | K100: R611,795,000
A101: FM1.12(2) | B101: Budgeted Operating Expenditure | G101: 998092000 | I101: 998092000 | K101: R1,034,527,000
A102: FM1.13 | B102: Total Operating Revenue as a percentage of Total Operating Revenue Budget | C102: 1 | E102: 1 | F102: 1 | G102: =IF(AND(ISNUMBER(G103),ISNUMBER(G104)), G103/G104, "") -> 0.3214757751 | H102: 1 | I102: =IF(AND(ISNUMBER(I103),ISNUMBER(I104)), I103/I104, "") -> 0.5851552063 | J102: 1 | K102: =IF(AND(ISNUMBER(K103),ISNUMBER(K104)), K103/K104, "") ->  | L102: 1 | M102: =IF(AND(ISNUMBER(M103),ISNUMBER(M104)), M103/M104, "") ->  | N102: =IF(AND(B4="Quarter 1",NOT(ISBLANK(F102)),NOT(ISBLANK(F102))),G102-F102,IF(AND(B4="Quarter 2",NOT(ISBLANK(H102)),NOT(ISBLANK(H102))),I102-H102,IF(AND(B4="Quarter 3",NOT(ISBLANK(J102)),NOT(ISBLANK(J102))),K102-J102,IF(AND(B4="Quarter 4",NOT(ISBLANK(L102)),NOT(ISBLANK(L102))),M102-L102,"")))) -> 
A103: FM1.13(1) | B103: Actual Operating Revenue | G103: 360465000 | I103: 656124000 | K103: R925,604,000
A104: FM1.13(2) | B104: Budgeted Operating Revenue | G104: 1121282000 | I104: 1121282000 | K104: R1,034,527,000
A105: FM1.14 | B105: Service Charges and Property Rates Revenue as a percentage of Service Charges and Property Rates Revenue Budget | C105: 0.95 | E105: 0.95 | F105: 0.95 | G105: =IF(AND(ISNUMBER(G106),ISNUMBER(G107),ISNUMBER(G108)), (G106+G107)/G108, "") -> 0.05404688875 | H105: 0.95 | I105: =IF(AND(ISNUMBER(I106),ISNUMBER(I107),ISNUMBER(I108)), (I106+I107)/I108, "") -> 0.5330014471 | J105: 0.95 | K105: =IF(AND(ISNUMBER(K106),ISNUMBER(K107),ISNUMBER(K108)), (K106+K107)/K108, "") ->  | L105: 0.95 | M105: =IF(AND(ISNUMBER(M106),ISNUMBER(M107),ISNUMBER(M108)), (M106+M107)/M108, "") ->  | N105: =IF(AND(B4="Quarter 1",NOT(ISBLANK(F105)),NOT(ISBLANK(F105))),G105-F105,IF(AND(B4="Quarter 2",NOT(ISBLANK(H105)),NOT(ISBLANK(H105))),I105-H105,IF(AND(B4="Quarter 3",NOT(ISBLANK(J105)),NOT(ISBLANK(J105))),K105-J105,IF(AND(B4="Quarter 4",NOT(ISBLANK(L105)),NOT(ISBLANK(L105))),M105-L105,"")))) -> 
A106: FM1.14(1) | B106: Actual Service Charges Revenue | G106: 7810000 | I106: 129376000 | K106: R23,990,000
A107: FM1.14(2) | B107: Actual Property Rates Revenue | G107: 6868000 | I107: 15376000 | K107: R192,455,000
A108: FM1.14(3) | B108: Budgeted Service Charges and Property Rates Revenue | G108: 271579000 | I108: 271579000 | K108: 289503000
A109: FM3.11 | B109: Cash/Cost coverage ratio | C109: Yes funded | E109: Yes funded | F109: Yes Funded | G109: =IF(AND(ISNUMBER(G110),ISNUMBER(G111),ISNUMBER(G112),ISNUMBER(G113),ISNUMBER(G114)), (G110-G111-G112+G113)/G114, "") ->  | H109: Yes funded | I109: =IF(AND(ISNUMBER(I110),ISNUMBER(I111),ISNUMBER(I112),ISNUMBER(I113),ISNUMBER(I114)), (I110-I111-I112+I113)/I114, "") -> 3.091778566 | J109: Yes funded | K109: =IF(AND(ISNUMBER(K110),ISNUMBER(K111),ISNUMBER(K112),ISNUMBER(K113),ISNUMBER(K114)), (K110-K111-K112+K113)/K114, "") ->  | L109: Yes funded | M109: =IF(AND(ISNUMBER(M110),ISNUMBER(M111),ISNUMBER(M112),ISNUMBER(M113),ISNUMBER(M114)), (M110-M111-M112+M113)/M114, "") ->  | N109: =IF(AND(B4="Quarter 1",NOT(ISBLANK(F109)),NOT(ISBLANK(F109))),G109-F109,IF(AND(B4="Quarter 2",NOT(ISBLANK(H109)),NOT(ISBLANK(H109))),I109-H109,IF(AND(B4="Quarter 3",NOT(ISBLANK(J109)),NOT(ISBLANK(J109))),K109-J109,IF(AND(B4="Quarter 4",NOT(ISBLANK(L109)),NOT(ISBLANK(L109))),M109-L109,"")))) -> 
A110: FM3.11(1) | B110: Cash and cash equivalent | G110: 36958614 | I110: 40266856.98 | K110: R56,583,763
A111: FM3.11(2) | B111: Unspent Conditional Grants | G111: 36684000 | I111: 90051000 | K111: R66,827,276
A112: FM3.11(3) | B112: Overdraft | G112: R0 | I112: 0 | K112: R0
A113: FM3.11(4) | B113: Short Term Investment | G113: 135401000 | I113: 235290857 | K113: R157,463,708
A114: FM3.11(5) | B114: Monthly Fixed Operational Expenditure excluding (Depreciation, Amortisation, Provision for Bad Debts, Impairment and Loss on Disposal of Assets) | G114: 60000000 | I114: 60000000 | K114: R60,000,000
A115: FM3.13 | B115: Trade payables to cash ratio | C115: 0.05 | E115: 0.1 | F115: 0.1 | G115: =IF(AND(ISNUMBER(G116),ISNUMBER(G117)), G116/G117, "") -> 0.1872451368 | H115: 0.1 | I115: =IF(AND(ISNUMBER(I116),ISNUMBER(I117)), I116/I117, "") -> 0.4805454294 | J115: 0.1 | K115: =IF(AND(ISNUMBER(K116),ISNUMBER(K117)), K116/K117, "") ->  | L115: 10 | M115: =IF(AND(ISNUMBER(M116),ISNUMBER(M117)), M116/M117, "") ->  | N115: =IF(AND(B4="Quarter 1",NOT(ISBLANK(F115)),NOT(ISBLANK(F115))),G115-F115,IF(AND(B4="Quarter 2",NOT(ISBLANK(H115)),NOT(ISBLANK(H115))),I115-H115,IF(AND(B4="Quarter 3",NOT(ISBLANK(J115)),NOT(ISBLANK(J115))),K115-J115,IF(AND(B4="Quarter 4",NOT(ISBLANK(L115)),NOT(ISBLANK(L115))),M115-L115,"")))) -> 
A116: FM3.13(2) | B116: Trade payables | G116: 14351000 | I116: 132418000 | K116: R15,902,000
A117: FM3.13(1) | B117: Cash and cash equivalents | G117: 76642845 | I117: 275557714 | K117: R56,583,763
A118: FM3.14 | B118: Liquidity ratio | C118: 1 | E118: 1 | F118: 1 | G118: =IF(AND(ISNUMBER(G119),ISNUMBER(G120)), G119/G120, "") -> 0.3737399181 | H118: 1 | I118: =IF(AND(ISNUMBER(I119),ISNUMBER(I120)), I119/I120, "") -> 1.770959228 | J118: 1 | K118: =IF(AND(ISNUMBER(K119),ISNUMBER(K120)), K119/K120, "") ->  | L118: 1 | M118: =IF(AND(ISNUMBER(M119),ISNUMBER(M120)), M119/M120, "") ->  | N118: =IF(AND(B4="Quarter 1",NOT(ISBLANK(F118)),NOT(ISBLANK(F118))),G118-F118,IF(AND(B4="Quarter 2",NOT(ISBLANK(H118)),NOT(ISBLANK(H118))),I118-H118,IF(AND(B4="Quarter 3",NOT(ISBLANK(J118)),NOT(ISBLANK(J118))),K118-J118,IF(AND(B4="Quarter 4",NOT(ISBLANK(L118)),NOT(ISBLANK(L118))),M118-L118,"")))) -> 
A119: FM3.14(1) | B119: Cash and cash equivalents | G119: 76642845 | I119: 275557714 | K119: R56,583,763
A120: FM3.14(2) | B120: Current liabilities | G120: 205070000 | I120: 155598000 | K120: R161,917,000
A121: FM4.31 | B121: Creditors payment period | C121: 30 days | E121: 30 days | F121: 30 days | G121: =IF(AND(ISNUMBER(G122),ISNUMBER(G123),ISNUMBER(G124)), G122/G123*G124, "") ->  | H121: 30 days | I121: =IF(AND(ISNUMBER(I122),ISNUMBER(I123),ISNUMBER(I124)), I122/I123*I124, "") ->  | J121: 30 days | K121: =IF(AND(ISNUMBER(K122),ISNUMBER(K123),ISNUMBER(K124)), K122/K123*K124, "") ->  | L121: 30 days70864 | M121: =IF(AND(ISNUMBER(M122),ISNUMBER(M123),ISNUMBER(M124)), M122/M123*M124, "") ->  | N121: =IF(AND(B4="Quarter 1",NOT(ISBLANK(F121)),NOT(ISBLANK(F121))),G121-F121,IF(AND(B4="Quarter 2",NOT(ISBLANK(H121)),NOT(ISBLANK(H121))),I121-H121,IF(AND(B4="Quarter 3",NOT(ISBLANK(J121)),NOT(ISBLANK(J121))),K121-J121,IF(AND(B4="Quarter 4",NOT(ISBLANK(L121)),NOT(ISBLANK(L121))),M121-L121,"")))) -> 
A122: FM4.31(1) | B122: Trade Creditors Outstanding | G122: 7086438955 | I122: 5559673 | K122: R15,902,000
A123: FM4.31(2) | B123: Credit purchases (operating and capital) | G123: 0 | I123: R0 | K123: R0
A124: FM4.31(3) | B124: Number of days in the reporting year to date | G124: 92 | I124: 180 | K124: 273
A125: FM5.11 | B125: Percentage of total capital expenditure funded from own funding (Internally generated funds + Borrowings) | C125: 0.4 | E125: 0.4 | F125: 0.4 | G125: =IF(AND(ISNUMBER(G126),ISNUMBER(G127),ISNUMBER(G128)), (G126+G127)/G128, "") ->  | H125: 0.4 | I125: =IF(AND(ISNUMBER(I126),ISNUMBER(I127),ISNUMBER(I128)), (I126+I127)/I128, "") -> 0.2384012677 | J125: 0.4 | K125: =IF(AND(ISNUMBER(K126),ISNUMBER(K127),ISNUMBER(K128)), (K126+K127)/K128, "") ->  | L125: 0.4 | M125: =IF(AND(ISNUMBER(M126),ISNUMBER(M127),ISNUMBER(M128)), (M126+M127)/M128, "") ->  | N125: =IF(AND(B4="Quarter 1",NOT(ISBLANK(F125)),NOT(ISBLANK(F125))),G125-F125,IF(AND(B4="Quarter 2",NOT(ISBLANK(H125)),NOT(ISBLANK(H125))),I125-H125,IF(AND(B4="Quarter 3",NOT(ISBLANK(J125)),NOT(ISBLANK(J125))),K125-J125,IF(AND(B4="Quarter 4",NOT(ISBLANK(L125)),NOT(ISBLANK(L125))),M125-L125,"")))) -> 
A126: FM5.11(1) | B126: Internally Generated Funds | G126: 26825000 | I126: 29788000 | K126: R54,479,000
A127: FM5.11(2) | B127: Borrowings | G127: R0 | I127: 0 | K127: R0
A128: FM5.11(3) | B128: Total Capital Expenditure | G128: 53040000 | I128: 124949000 | K128: R176613000
A129: FM6.12 | B129: Percentage of awarded tenders [over R200k], published on the municipality’s website | C129: 1 | E129: 1 | F129: 1 | G129: =IF(AND(ISNUMBER(G130),ISNUMBER(G131)), G130/G131, "") -> 1 | H129: 1 | I129: =IF(AND(ISNUMBER(I130),ISNUMBER(I131)), I130/I131, "") -> 0 | J129: 1 | K129: =IF(AND(ISNUMBER(K130),ISNUMBER(K131)), K130/K131, "") ->  | L129: 1 | M129: =IF(AND(ISNUMBER(M130),ISNUMBER(M131)), M130/M131, "") ->  | N129: =IF(AND(B4="Quarter 1",NOT(ISBLANK(F129)),NOT(ISBLANK(F129))),G129-F129,IF(AND(B4="Quarter 2",NOT(ISBLANK(H129)),NOT(ISBLANK(H129))),I129-H129,IF(AND(B4="Quarter 3",NOT(ISBLANK(J129)),NOT(ISBLANK(J129))),K129-J129,IF(AND(B4="Quarter 4",NOT(ISBLANK(L129)),NOT(ISBLANK(L129))),M129-L129,"")))) -> 
A130: FM6.12(1) | B130: Number of awarded tenders published on the municipality's website | G130: 10 | I130: 0 | K130: 0
A131: FM6.12(2) | B131: Number of awarded tenders | G131: 10 | I131: 3 | K131: 0
A132: FM6.13 | B132: Percentage of tender cancellations | C132: 0 | E132: 0 | F132: 0 | G132: =IF(AND(ISNUMBER(G133),ISNUMBER(G134)), G133/G134, "") -> 0 | H132: 0 | I132: =IF(AND(ISNUMBER(I133),ISNUMBER(I134)), I133/I134, "") -> 0 | J132: 0 | K132: =IF(AND(ISNUMBER(K133),ISNUMBER(K134)), K133/K134, "") ->  | L132: 0 | M132: =IF(AND(ISNUMBER(M133),ISNUMBER(M134)), M133/M134, "") ->  | N132: =IF(AND(B4="Quarter 1",NOT(ISBLANK(F132)),NOT(ISBLANK(F132))),G132-F132,IF(AND(B4="Quarter 2",NOT(ISBLANK(H132)),NOT(ISBLANK(H132))),I132-H132,IF(AND(B4="Quarter 3",NOT(ISBLANK(J132)),NOT(ISBLANK(J132))),K132-J132,IF(AND(B4="Quarter 4",NOT(ISBLANK(L132)),NOT(ISBLANK(L132))),M132-L132,"")))) -> 
A133: FM6.13(1) | B133: Number of tenders cancelled | G133: 0 | I133: 0 | K133: 0
A134: FM6.13(2) | B134: Total number of tenders advertised and closed | G134: 17 | I134: 8 | K134: 0
A135: FM7.11 | B135: Debtors payment period | C135: 30 days | E135: 30 days | F135: 30 days | G135: =IF(AND(ISNUMBER(G136),ISNUMBER(G137),ISNUMBER(G138),ISNUMBER(G139)), ((G136-G137)/G138)*G139, "") ->  | H135: 30 days | I135: =IF(AND(ISNUMBER(I141),ISNUMBER(I137),ISNUMBER(I138),ISNUMBER(I139)), ((I141-I137)/I138)*I139, "") ->  | J135: 30 days | K135: =IF(AND(ISNUMBER(K136),ISNUMBER(K137),ISNUMBER(K138),ISNUMBER(K139)), ((K136-K137)/K138)*K139, "") ->  | L135: 30 days | M135: =IF(AND(ISNUMBER(M136),ISNUMBER(M137),ISNUMBER(M138),ISNUMBER(M139)), ((M136-M137)/M138)*M139, "") ->  | N135: =IF(AND(B4="Quarter 1",NOT(ISBLANK(F135)),NOT(ISBLANK(F135))),G135-F135,IF(AND(B4="Quarter 2",NOT(ISBLANK(H135)),NOT(ISBLANK(H135))),I135-H135,IF(AND(B4="Quarter 3",NOT(ISBLANK(J135)),NOT(ISBLANK(J135))),K135-J135,IF(AND(B4="Quarter 4",NOT(ISBLANK(L135)),NOT(ISBLANK(L135))),M135-L135,"")))) -> 
A136: FM7.11(1) | B136: Gross Debtors | G136: 549994894.3 | I136: R 598,646,076.87 | K136: R632,761,560
A137: FM7.11(2) | B137: Bad Debt Provision | G137: 0 | I137: 0 | K137: R0
A138: FM7.11(3) | B138: Billed Revenue | G138: 67072428.03 | I138: R 78,912,729.55 | K138: R73,622,835
A139: FM7.11(4) | B139: Number of days in the reporting period year to date | G139: 30 days | I139: 30 days | K139: 30 days
A140: FM7.12 | B140: Collection rate ratio | C140: 0.95 | E140: 0.95 | F140: 0.95 | G140: =IF(AND(ISNUMBER(G141),ISNUMBER(G142),ISNUMBER(G143),ISNUMBER(G144)), (G141+G142-G143-G144)/G142, "") -> 0.9585098395 | H140: 0.95 | I140: =IF(AND(ISNUMBER(#REF!),ISNUMBER(I142),ISNUMBER(I143),ISNUMBER(I144)), (#REF!+I142-I143-I144)/I142, "") ->  | J140: 0.95 | K140: =IF(AND(ISNUMBER(K141),ISNUMBER(K142),ISNUMBER(K143),ISNUMBER(K144)), (K141+K142-K143-K144)/K142, "") ->  | L140: 0.95 | M140: =IF(AND(ISNUMBER(M141),ISNUMBER(M142),ISNUMBER(M143),ISNUMBER(M144)), (M141+M142-M143-M144)/M142, "") ->  | N140: =IF(AND(B4="Quarter 1",NOT(ISBLANK(F140)),NOT(ISBLANK(F140))),G140-F140,IF(AND(B4="Quarter 2",NOT(ISBLANK(H140)),NOT(ISBLANK(H140))),I140-H140,IF(AND(B4="Quarter 3",NOT(ISBLANK(J140)),NOT(ISBLANK(J140))),K140-J140,IF(AND(B4="Quarter 4",NOT(ISBLANK(L140)),NOT(ISBLANK(L140))),M140-L140,"")))) -> 
A141: FM7.12(1) | B141: Gross Debtors Opening Balance | G141: 547212048.2 | I141: R 575,646,076.87 | K141: R598,646,077
A142: FM7.12(2) | B142: Billed Revenue | G142: 67072428 | I142: R 78,912,729.55 | K142: R73,622,835
A143: FM7.12(3) | B143: Gross Debtors Closing Balance | G143: 549994894 | I143: R 598,646,076.87 | K143: R632,761,560
A144: FM7.12(4) | B144: Bad Debts Written Off | G144: 0 | I144: 0 | K144: R0
A145: C88 Code | B145: Description | C145: Baseline (Annual Performance for 2024/25) | D145: Medium term target (term of government | E145: Annual target for 2025/26 | F145: 1st Quarter planned output as per SDBIP | G145: 1st Quarter actual output | H145: 2nd Quarter planned output as per SDBIP | I145: 2nd Quarter actual output | J145: 3rd Quarter planned output as per SDBIP | K145: 3rd Quarter actual output | L145: 4th Quarter planned output as per SDBIP | M145: 4th Quarter actual output | N145: Variation | O145: Reason(s) for variation | P145: Remedial action | Q145: Reasons for no data, if not provided | R145: Steps undertaken, or to be undertaken, to provide data in the future | S145: Estimated date when data will be available
A146: COMPLIANCE INDICATORS FOR QUARTERLY REPORTING
A147: C1 | B147: Number of signed performance agreements by the MM and section 56 managers: | C147: 7 | G147: 7 | I147: 7 | K147: 7
A148: C2 | B148: Number of ExCo or Mayoral Executive meetings held: | C148: 15 | G148: 3 | I148: 5 | K148: 4
A149: C3 | B149: Number of Council portfolio committee meetings held: | C149: 60 | G149: 16 | I149: 14 | K149: 15
A150: C4 | B150: Number of MPAC meetings held: | C150: 15 | G150: 3 | I150: 5 | K150: 4
A151: C6 | B151: Number of formal (minuted) meetings between the Mayor, Speaker and MM were held to deal with municipal matters: | C151: 17 | G151: 3 | I151: 4 | K151: 3
A152: C7 | B152: Number of formal (minuted) meetings - to which all senior managers were invited- held: | C152: 5 | G152: 3 | I152: 3 | K152: 0
A153: C8 | B153: Number of councillors completed training: | C153: 16 | G153: 9 | I153: 25 | K153: 25
A154: C9 | B154: Number of municipal officials completed training: | C154: 20 | G154: 13 | I154: 208 | K154: 10
A155: C10 | B155: Number of work stoppages occurring: | C155: 0 | G155: 0 | I155: 0 | K155: 0
A156: C11 | B156: Number of litigation cases instituted by the municipality: | C156: 18 | G156: 18 | I156: 18 | K156: 18
A157: C12 | B157: Number of litigation cases instituted against the municipality: | C157: 13 | G157: 13 | I157: 13 | K157: 13
A158: C13 | B158: Number of forensic investigations instituted: | C158: 0 | G158: 0 | I158: 0 | K158: 0
A159: C14 | B159: Number of forensic investigations concluded: | C159: 0 | G159: 0 | I159: 0 | K159: 0
A160: C15 | B160: Number of days of sick leave taken by employees: | C160: 231 | G160: 35 | I160: 166 | K160: 102
A161: C17 | B161: Number of temporary employees employed: | C161: 208 | G161: 208 | I161: 42 | K161: 10
A162: C18 | B162: Number of approved demonstrations in the municipal area: | C162: 0 | G162: 0 | I162: 0 | K162: 0
A163: C19 | B163: Number of recognised traditional and Khoi-San leaders in attendance (sum of) at all council meetings: | C163: 0 | G163: 0 | I163: 0 | K163: 0
A164: C20 | B164: Number of permanent environmental health practitioners employed by the municipality: | C164: 0 | G164: 0 | I164: 0 | K164: 0
A165: C22 | B165: Number of Council meetings held: | C165: 24 | G165: 4 | I165: 7 | K165: 6
A166: C23 | B166: Number of disciplinary cases for misconduct relating to fraud and corruption: | C166: 0 | G166: 0 | I166: 0 | K166: 0
A167: C24 | B167: Number of council meetings disrupted | C167: 0 | G167: 0 | I167: 0 | K167: 0
A168: C25 | B168: Number of protests reported | C168: 0 | G168: 0 | I168: 0 | K168: 0
A169: C26 | B169: R-value of all tenders awarded | C169: 527792826 | G169: 31756676 | I169: 0 | K169: 0
A170: C27 | B170: Number of all awards made in terms of Section 36 of the MFMA Municipal Supply Chain Management Regulations: | C170: 0 | G170: 0 | I170: 3 | K170: 0
A171: C28 | B171: R-value of all awards made in terms of Section 36 of the MFMA Municipal Supply Chain Management Regulations: | C171: 0 | G171: 0 | I171: R 1153517 | K171: R0
A172: C29 | B172: Number of approved applications for rezoning a property for commercial purposes: | C172: 4 | G172: 0 | I172: 0 | K172: 0
A173: C30 | B173: Number of business licenses approved: | C173: 0 | G173: 0 | I173: 0 | K173: 0
A174: C32 | B174: Number of positions filled with regard to municipal infrastructure: | C174: 0 | G174: 0 | I174: 0 | K174: 0
A175: C33 | B175: Number of tenders over R200 000 awarded: | C175: 6 | G175: 10 | I175: 3 | K175: 0
A176: C34 | B176: Number of months the Municipal Managers' position has been filled (not Acting): | C176: 28 | G176: 31 | I176: 31 | K176: 34
A177: C35 | B177: Number of months the Chief Financial Officers' position has been filled (not Acting): | C177: 31 | G177: 34 | I177: 37 | K177: 40
A178: C36 | B178: Number of vacant posts of senior managers: | C178: 2 | G178: 2 | I178: 2 | K178: 2
A179: C38 | B179: Number of filled posts in the treasury and budget office: | C179: 39 | G179: 39 | I179: 39 | K179: 39
A180: C40 | B180: Number of filled posts in the development and planning department | C180: 3 | G180: 3 | I180: 3 | K180: 3
A181: C42 | B181: Number of registered engineers employed in approved posts | C181: 1 | G181: 1 | I181: 1 | K181: 1
A182: C43 | B182: Number of engineers employed in approved posts: | C182: 1 | G182: 1 | I182: 1 | K182: 1
A183: C44 | B183: Number of discliplinary cases in the municipality: | C183: 0 | G183: 2 | I183: 2 | K183: 2
A184: C45 | B184: Number of finalised disciplinary cases: | C184: 1 | G184: 0 | I184: 0 | K184: 0
A185: C47 | B185: Number of waste management posts filled: | C185: 17 | G185: 26 | I185: 26 | K185: 26
A186: C49 | B186: Number of electricians employed in approved posts: | C186: 4 | G186: 4 | I186: 4 | K186: 4
A187: C51 | B187: Number of filled water and wastewater management posts: | C187: 0 | G187: 0 | I187: 0 | K187: 0
A188: C56 | B188: Number of customers provided with an alternative energy supply (e.g. LPG or paraffin or biogel according to supply level standards) | C188: 0 | G188: 0 | I188: 0 | K188: 0
A189: C57 | B189: Number of registered electricity consumers with an embedded generation system | C189: 0 | G189: 0 | I189: 0 | K189: 0
A190: C58 | B190: Total non-technical electricity losses in MWh (estimate) | C190: 0 | G190: 0 | I190: 0 | K190: 0
A191: C59 | B191: Number of municipal buildings that consume renewable energy | C191: 0 | G191: 0 | I191: 0 | K191: 0
A192: C61 | B192: Total number of chemical toilets in operation | C192: 0 | G192: 0 | I192: 0 | K192: 0
A193: C63 | B193: Total volume of water delivered by water trucks | C193: 0 | G193: 0 | I193: 0 | K193: 0
A194: C64 | B194: R-value of all direct municipal vehicle operational costs for public transport | C194: 0 | G194: 0 | I194: R0 | K194: R0
A195: C65 | B195: Total number of scheduled public transport access points | C195: 0 | G195: 0 | I195: 0 | K195: 0
A196: C67 | B196: Number of paid full-time firefighters employed by the municipality | C196: 0 | G196: 0 | I196: 0 | K196: 0
A197: C68 | B197: Number of part-time and firefighter reservists in the service of the municipality | C197: 0 | G197: 0 | I197: 0 | K197: 0
A198: C69 | B198: Number of 'displaced persons' to whom the municipality delivered assistance | C198: 0 | G198: 0 | I198: 0 | K198: 0
A199: C71 | B199: Number of procurement processes where disputes were raised | C199: 0 | G199: 0 | I199: 0 | K199: 0
A200: C73 | B200: Number of structural fires occurring in informal settlements | C200: 0 | G200: 0 | I200: 0 | K200: 0
A201: C74 | B201: Number of dwellings in informal settelements affected by structural fires (estimate) | C201: 0 | G201: 0 | I201: 0 | K201: 0
A202: C76 | B202: Number of SMMEs and informal businesses benefitting from municipal digitisation support programmes rolled out directly or in partnership with other stakeholders | C202: 0 | G202: 0 | I202: 0 | K202: 0
A203: C77 | B203: B-BBEE Procurement Spend on Empowering Suppliers that are at least 51% black owned based | C203: 0 | G203: 0 | I203: R0 | K203: R4 570032.60
... 214 more rows

Sheet Lookups (hidden)
A1: Quarter 1 | B1: EC139: Enoch Mgijima Local Municipality
A2: Quarter 2 | B2: EC157: King Sabata Dalindyebo Local Municipality
A3: Quarter 3 | B3: FS184: Matjhabeng Local Municipality
A4: Quarter 4 | B4: FS194: Maluti-A-Phofung Local Municipality
B5: FS204: Metsimaholo Local Municipality
B6: GT421: Emfuleni Local Municipality
B7: GT481: Mogale City Local Municipality
B8: GT484: Merafong City Local Municipality
B9: GT485: Rand West City Local Municipality
B10: KZN216: Ray Nkonyeni Local Municipality
B11: KZN225: Msunduzi Local Municipality
B12: KZN238: Alfred Duma Local Municipality
B13: KZN252: Newcastle Local Municipality
B14: KZN282: City of uMhlathuze Local Municipality
B15: KZN292: KwaDukuza Local Municipality
B16: LIM331: Greater Giyani Local Municipality
B17: LIM333: Greater Tzaneen Local Municipality
B18: LIM334: Ba-Phalaborwa Local Municipality
B19: LIM343: Thulamela Local Municipality
B20: LIM344: Makhado Local Municipality
B21: LIM354: Polokwane Local Municipality
B22: LIM362: Lephalale Local Municipality
B23: LIM367: Mogalakwena Local Municipality
B24: LIM476: Fetakgomo Tubatse Local Municipality
B25: MP307: Govan Mbeki Local Municipality
B26: MP312: Emalahleni Local Municipality (MP)
B27: MP313: Steve Tshwete Local Municipality
B28: MP324: Nkomazi Local Municipality
B29: MP325: Bushbuckridge Local Municipality
B30: MP326: City of Mbombela Local Municipality
B31: NC091: Sol Plaatje Local Municipality
B32: NW372: Madibeng Local Municipality
B33: NW373: Rustenburg Local Municipality
B34: NW383: Mahikeng Local Municipality
B35: NW403: City of Matlosana Local Municipality
B36: NW405: JB Marks Local Municipality
B37: WC023: Drakenstein Local Municipality
B38: WC024: Stellenbosch Local Municipality
B39: WC044: George Local Municipality
